{"text_format":"3","workbook":"xlsx","n_sheets":4,"sheets":["購物清單","預算明細","待辦事項清單","共用清單"],"not_rendered":{"charts":2,"images":2,"defined_names":12},"read":"whole","date_system":"1900"}

{"sheet":"購物清單","index":0,"n_rows":25,"n_cols":8,"rows_kept":25,"merged":[[2,1,2,7],[3,1,3,2],[4,4,6,7]]}
[null,"返校","計劃工具"]
[]
[null,"對照在 [預算明細] 中輸入的預算類別金額來追蹤購買進度。"]
[null,"預算摘要",null,null,{"$f":"\"購物進度 (\"&COUNTIFS(檢查清單[已購買], \">0\")&\" / \"&COUNTIFS(檢查清單[待買項目], \">0\")&\")\"","v":"購物進度 (1 / 6)"}]
[null,"預算",{"v":1500,"d":"NT$1,500.00"},null,{"$f":"IFERROR(COUNTIFS(檢查清單[待買項目],\">0\",檢查清單[已購買],\">0\")/待買項目的金額加總,0)","v":{"v":0.16666666666666666,"d":"17%"}}]
[null,"購物清單總計",{"$f":"IFERROR(SUM(檢查清單總計), \"\")","v":{"v":365,"d":"NT$365.00"}}]
[null,"現金餘額",{"$f":"IFERROR(C5-C6, \"\")","v":{"v":1135,"d":"NT$1,135.00"}}]
[null,"購物清單"]
[null,"項目","類別","數量","待買項目","費用","已購買","總費用"]
[null,"數學","教科書",1,1,{"v":55,"d":"NT$55.00"},1,{"$f":"IFERROR(檢查清單[數量]*檢查清單[費用], \"\")","v":{"v":55,"d":"NT$55.00"}}]
[null,"英文","教科書",1,1,null,null,{"$f":"IFERROR(檢查清單[數量]*檢查清單[費用], \"\")","v":0}]
[null,"背包","用品",1,null,{"v":30,"d":"NT$30.00"},null,{"$f":"IFERROR(檢查清單[數量]*檢查清單[費用], \"\")","v":{"v":30,"d":"NT$30.00"}}]
[null,"計算機","用品",1,{"$nulls":3},{"$f":"IFERROR(檢查清單[數量]*檢查清單[費用], \"\")","v":0}]
[null,"螢光筆","用品",3,{"$nulls":3},{"$f":"IFERROR(檢查清單[數量]*檢查清單[費用], \"\")","v":0}]
[null,"制服","衣服",2,1,{"v":100,"d":"NT$100.00"},null,{"$f":"IFERROR(檢查清單[數量]*檢查清單[費用], \"\")","v":{"v":200,"d":"NT$200.00"}}]
[null,"鈕扣式襯衫","衣服",4,{"$nulls":3},{"$f":"IFERROR(檢查清單[數量]*檢查清單[費用], \"\")","v":0}]
[null,"T 恤","衣服",5,{"$nulls":3},{"$f":"IFERROR(檢查清單[數量]*檢查清單[費用], \"\")","v":0}]
[null,"短褲","衣服",2,{"$nulls":3},{"$f":"IFERROR(檢查清單[數量]*檢查清單[費用], \"\")","v":0}]
[null,"運動鞋","衣服",2,1,null,null,{"$f":"IFERROR(檢查清單[數量]*檢查清單[費用], \"\")","v":0}]
[null,"襪子","衣服",10,{"$nulls":3},{"$f":"IFERROR(檢查清單[數量]*檢查清單[費用], \"\")","v":0}]
[null,"風衣外套","衣服",1,1,{"v":80,"d":"NT$80.00"},null,{"$f":"IFERROR(檢查清單[數量]*檢查清單[費用], \"\")","v":{"v":80,"d":"NT$80.00"}}]
[null,"毛衣","衣服",1,{"$nulls":3},{"$f":"IFERROR(檢查清單[數量]*檢查清單[費用], \"\")","v":0}]
[null,"運動衫","衣服",1,{"$nulls":3},{"$f":"IFERROR(檢查清單[數量]*檢查清單[費用], \"\")","v":0}]
[null,"內衣","衣服",10,{"$nulls":3},{"$f":"IFERROR(檢查清單[數量]*檢查清單[費用], \"\")","v":0}]
[null,"厚外套","衣服",1,1,null,null,{"$f":"IFERROR(檢查清單[數量]*檢查清單[費用], \"\")","v":0}]

{"sheet":"預算明細","index":1,"n_rows":6,"n_cols":3,"rows_kept":6}
[null,"預算明細"]
[null,"在 [購物清單] 中新增要追蹤的類別和預算金額。"]
[null,"類別","總費用"]
[null,"衣服",{"$f":"IFERROR(SUMIFS(檢查清單[總費用],檢查清單[類別],類別[類別]), \"\")","v":{"v":280,"d":"NT$280.00"}}]
[null,"用品",{"$f":"IFERROR(SUMIFS(檢查清單[總費用],檢查清單[類別],類別[類別]), \"\")","v":{"v":30,"d":"NT$30.00"}}]
[null,"教科書",{"$f":"IFERROR(SUMIFS(檢查清單[總費用],檢查清單[類別],類別[類別]), \"\")","v":{"v":55,"d":"NT$55.00"}}]

{"sheet":"待辦事項清單","index":2,"n_rows":22,"n_cols":3,"rows_kept":22}
[null,"待辦事項清單"]
[null,"追蹤您必須在開學之前完成的所有活動。"]
[null,"已完成","工作"]
[null,"x","完成所有註冊表單"]
[null,null,"排定學校身體和視力檢查 (如有需要)"]
[null,null,"確認所有必須施打的疫苗"]
[null,null,"針對所有必要的藥物，向醫師取得劑量說明注意事項"]
[null,null,"檢視學校服儀規定"]
[null,null,"取得學校用品清單"]
[null,null,"與導師會面"]
[null,null,"確定導師慣用的通訊方式 (電話、電子郵件、書面通知)"]
[null,null,"帶著孩子認識學校環境"]
[null,null,"協助孩子記住您的住家電話、公司電話和住家地址"]
[null,null,"安排交通、指定安全的接送地點，並養成習慣"]
[null,null,"如果步行，請與您的孩子練習數次往返學校的路線"]
[null,null,"如果共乘汽車，請將您的孩子介紹給所有共乘司機認識"]
[null,null,"如果搭公車，請確定搭車時間和公車站"]
[null,null,"安排托兒/課後輔導"]
[null,null,"規劃早餐、學校點心、午餐盒、課後點心的菜單"]
[null,null,"確定寫家庭作業的地點和時間表"]
[null,null,"至少在開學前兩週建立規律的就寢習慣"]
[null,null,"準備記錄學校所有活動的行事曆"]

{"sheet":"共用清單","index":3,"n_rows":4,"n_cols":5,"rows_kept":4}
[null,"共用清單",null,null,"與其他人共用這份清單，讓他們可以一起參與。選取右上角的 [共用]，或是按 ALT，然後按 YU。將檔案儲存到 OneDrive，然後將連結傳送給您的朋友。"]
[null,"姓名","電子郵件","是否共用？"]
[null,"人員 1","someone@email.com","是"]
[null,"人員 2","someone@email.com","否"]